Workbook

Sheet Лист1
A1: Муниципальный этап Всероссийских спортивных игр школьников "Президентские спортивные игры"
A2: г. Лениногорск 25.04-27.04.2022 2007-2008 г.р.
A3: № п/п | B3: ШКОЛА | C3: Баскетбол | E3: Настольный теннис | G3: Волейбол | I3: Легкая атлетика юноши | M3: Легкая атлетика девушки | Q3: Сумма мест | R3: Место
C4: Юноши | D4: Девушки | E4: Юноши | F4: Девушки | G4: Юноши | H4: Девушки | I4: Многоборье | K4: Л/а эстафета | M4: Многоборье | O4: Л/а эстафета
C5: Место | D5: Место | E5: Место | F5: Место | G5: Место | H5: Место | I5: Очки | J5: Место | K5: Результат | L5: Место | M5: Очки | N5: Место | O5: Результат | P5: Место
A6: 1 | B6: Лицей №12 | C6: 3 | D6: 1 | E6: 1 | F6: 1 | G6: 4 | H6: 1 | I6: 1459 | J6: 5 | K6: 2,31.71 | L6: 2 | M6: 1281 | N6: 1 | O6: 2,58.49 | P6: 1 | Q6: =C6+D6+E6+F6+G6+H6+J6+L6+N6+P6 -> 20 | R6: I
A7: 2 | B7: МБОУ "СОШ №6" | C7: 1 | D7: 6 | E7: 7 | F7: 7 | G7: 1 | H7: 4 | I7: 1562 | J7: 1 | K7: 2,28.98 | L7: 1 | M7: 1103 | N7: 3 | O7: 2,59.64 | P7: 2 | Q7: 33 | R7: II
A8: 3 | B8: МБОУ "СОШ №10" | C8: 7 | D8: 4 | E8: 3 | F8: 2 | G8: 2 | H8: 3 | I8: 1232 | J8: 6 | K8: 2,34.85 | L8: 3 | M8: 980 | N8: 4 | O8: 3,27.03 | P8: 5 | Q8: 39 | R8: III
A9: 4 | B9: МБОУ "СОШ №8" | C9: 4 | D9: 3 | E9: 7 | F9: 6 | G9: 7 | H9: 2 | I9: 1478 | J9: 3 | K9: 2,39.23 | L9: 5 | M9: 1129 | N9: 2 | O9: 3,06.18 | P9: 4 | Q9: 43 | R9: IV
A10: 5 | B10: МБОУ "СОШ №2" | C10: 6 | D10: 5 | E10: 5 | F10: 3 | G10: 3 | H10: 7 | I10: 1506 | J10: 2 | K10: 2,44.44 | L10: 6 | M10: 726 | N10: 7 | O10: 3,05.71 | P10: 3 | Q10: 47 | R10: V
A11: 6 | B11: Гимназия №11 | C11: 2 | D11: 2 | E11: 4 | F11: 4 | G11: 5 | H11: 5 | I11: 947 | J11: 7 | K11: 2,59.81 | L11: 7 | M11: 938 | N11: 5 | O11: 3,44.25 | P11: 7 | Q11: 48 | R11: VI
A12: 7 | B12: МБОУ "СОШ №5" | C12: 5 | D12: 7 | E12: 2 | F12: 5 | G12: 6 | H12: 6 | I12: 1462 | J12: 4 | K12: 2,35.09 | L12: 4 | M12: 844 | N12: 6 | O12: 3,39.21 | P12: 6 | Q12: 51 | R12: VII
C15: Главный судья ________________Махубрахманова Р.Н.
C17: Главный секретарь _______________Сидюкова Р.А.

Sheet Лист2
A1: Муниципальный этап Всероссийских спортивных игр школьников "Президентские спортивные игры"
A2: Многоборье юноши МБОУ "СОШ №2" 27.04.2022г.
A3: № п/п | B3: Ф.И.О. | C3: Бег 60м | E3: Бег 800м | G3: Метание мяча | I3: Сумма очков
C4: Результат | D4: Очки | E4: Результат | F4: Очки | G4: Результат | H4: Очки
A5: 1 | B5: Нуртдинов Мурат Рашидович | C5: 8.51 | D5: 108 | G5: 53 | H5: 95 | I5: =D5+F5+H5 -> 203
A6: 2 | B6: Храмов Антон Андреевич | C6: 8.25 | D6: 117 | G6: 41 | H6: 65 | I6: 182
A7: 3 | B7: Ефимов Иван Константинович | C7: 8.94 | D7: 96 | G7: 45 | H7: 75 | I7: 171
A8: 4 | B8: Туктаров Аскар Ильясович | C8: 8.82 | D8: 99 | G8: 40 | H8: 63 | I8: 162
A9: 5 | B9: Вечкитов Константин Александр | C9: 9.53 | D9: 78 | G9: 43 | H9: 70 | I9: 148 | J9: =I5+I6+I7+I8+I9 -> 866
A10: 6 | B10: Корноухов Ролан Алексеевич | C10: 10.71 | D10: 42 | G10: 34 | H10: 48 | I10: 90
A11: Многоборье девушки МБОУ "СОШ №2" 27.04.2022г.
A12: № п/п | B12: Ф.И.О. | C12: Бег 60м | E12: Бег 600м | G12: Метание мяча | I12: Сумма очков
C13: Результат | D13: Очки | E13: Результат | F13: Очки | G13: Результат | H13: Очки
A14: 1 | B14: Саетова Дарина Ильдаровна | C14: 9.21 | D14: 87 | G14: 19.9 | H14: 34 | I14: =D14+F14+H14 -> 121
A15: 2 | B15: Демус Анастасия Романовна | C15: 9.15 | D15: 90 | G15: 17.9 | H15: 29 | I15: 119
A16: 3 | B16: Иксанова Элина Рустемовна | C16: 9.92 | D16: 66 | G16: 26.5 | H16: 51 | I16: 117
A17: 4 | B17: Харасова Эльвира Нафисовна | C17: 9.74 | D17: 72 | G17: 13 | H17: 17 | I17: 89
A18: 5 | B18: Ахметшина Сабина Рамилевна | C18: 10.24 | D18: 57 | G18: 15.5 | H18: 23 | I18: 80 | J18: =I14+I15+I16+I17+I18 -> 526
A19: 6 | B19: Нагимова Рената Ильясовна | C19: 10.69 | D19: 45 | G19: 20 | H19: 34 | I19: 79
B22: Главный судья ________________Махубрахманова Р.Н.
B24: Главный секретарь _______________Сидюкова Р.А.

Sheet Лист3
A1: Муниципальный этап Всероссийских спортивных игр школьников "Президентские спортивные игры"
A2: Многоборье юноши МБОУ "СОШ №5" 27.04.2022г.
A3: № п/п | B3: Ф.И.О. | C3: Бег 60м | E3: Бег 800м | G3: Метание мяча | I3: Сумма очков
C4: Результат | D4: Очки | E4: Результат | F4: Очки | G4: Результат | H4: Очки
A5: 1 | B5: Ходаков Кирилл | C5: 8.05 | D5: 123 | G5: 42 | H5: 68 | I5: =D5+F5+H5 -> 191
A6: 2 | B6: Аппаков Никита | C6: 8.84 | D6: 99 | G6: 45 | H6: 75 | I6: 174
A7: 3 | B7: Яппаров Ришат | C7: 8.39 | D7: 114 | G7: 34 | H7: 48 | I7: 162
A8: 4 | B8: Галимов Артем | C8: 8.37 | D8: 114 | G8: 32 | H8: 44 | I8: 158
A9: 5 | B9: Савельев Егор | C9: 8.86 | D9: 99 | G9: 37 | H9: 55 | I9: 154 | J9: =I5+I6+I7+I8+I9 -> 839
A10: 6 | B10: Ганиев Камиль | C10: 8.86 | D10: 99 | G10: 36 | H10: 53 | I10: 152
A11: Многоборье девушки МБОУ "СОШ №5" 27.04.2022г.
A12: № п/п | B12: Ф.И.О. | C12: Бег 60м | E12: Бег 600м | G12: Метание мяча | I12: Сумма очков
C13: Результат | D13: Очки | E13: Результат | F13: Очки | G13: Результат | H13: Очки
A14: 1 | B14: Куропаткина Яна | C14: 10.24 | D14: 90 | G14: 22.5 | H14: 41 | I14: =D14+F14+H14 -> 131
A15: 2 | B15: Тимофеева Ульяна | C15: 10.1 | D15: 93 | G15: 19 | H15: 32 | I15: 125
A16: 3 | B16: Хабибуллина Лия | C16: 10.88 | D16: 72 | G16: 20.9 | H16: 37 | I16: 109
A17: 4 | B17: Садыкова Рената | C17: 11.24 | D17: 60 | G17: 19.9 | H17: 34 | I17: 94
A18: 5 | B18: Григорьева София | C18: 11.39 | D18: 57 | G18: 17.5 | H18: 28 | I18: 85 | J18: =I14+I15+I16+I17+I18 -> 544
A19: 6 | B19: Сюндюкова Лия | C19: 11.54 | D19: 51 | G19: 17 | H19: 27 | I19: 78
B22: Главный судья ________________Махубрахманова Р.Н.
B24: Главный секретарь _______________Сидюкова Р.А.

Sheet Лист4
A1: Муниципальный этап Всероссийских спортивных игр школьников "Президентские спортивные игры"
A2: Многоборье юноши МБОУ "СОШ №6" 27.04.2022г.
A3: № п/п | B3: Ф.И.О. | C3: Бег 60м | E3: Бег 800м | G3: Метание мяча | I3: Сумма очков
C4: Результат | D4: Очки | E4: Результат | F4: Очки | G4: Результат | H4: Очки
A5: 1 | B5: Кашапов Эмиль | C5: 8.03 | D5: 123 | G5: 41 | H5: 65 | I5: =D5+F5+H5 -> 188
A6: 2 | B6: Лимонов Ярослав | C6: 8.1 | D6: 120 | G6: 36 | H6: 53 | I6: 173
A7: 3 | B7: Богачев Максим | C7: 8.31 | D7: 114 | G7: 38 | H7: 58 | I7: 172
A8: 4 | B8: Данилов Федор | C8: 8.4 | D8: 111 | G8: 39 | H8: 60 | I8: 171
A9: 5 | B9: Григорьев Виталий | C9: 9 | D9: 93 | G9: 45 | H9: 75 | I9: 168 | J9: =I5+I6+I7+I8+I9 -> 872
A10: 6 | B10: Анисимов Иван | C10: 9.28 | D10: 87 | G10: 44 | H10: 73 | I10: 160
A11: Многоборье девушки МБОУ "СОШ №6" 27.04.2022г.
A12: № п/п | B12: Ф.И.О. | C12: Бег 60м | E12: Бег 600м | G12: Метание мяча | I12: Сумма очков
C13: Результат | D13: Очки | E13: Результат | F13: Очки | G13: Результат | H13: Очки
A14: 1 | B14: Бострикова Анна | C14: 8.75 | D14: 135 | G14: 17.5 | H14: 28 | I14: =D14+F14+H14 -> 163
A15: 2 | B15: Исковская Ульяна | C15: 9.75 | D15: 105 | G15: 20 | H15: 34 | I15: =D15+F15+H15 -> 139
A16: 3 | B16: Шириязданова Виолетта | C16: 10.44 | D16: 84 | G16: 21.2 | H16: 37 | I16: 121
A17: 4 | B17: Самигуллина Екатерина | C17: 9.5 | D17: 111 | G17: 33.5 | H17: 68 | I17: 179
A18: 5 | B18: Кирилова Кристина | C18: 10 | D18: 96 | G18: 28.5 | H18: 56 | I18: 152 | J18: =I14+I15+I16+I17+I18 -> 754
A19: 6 | B19: Безьянова Ульяна | C19: 9.7 | D19: 105 | G19: 17.5 | H19: 28 | I19: 133
B22: Главный судья ________________Махубрахманова Р.Н.
B24: Главный секретарь _______________Сидюкова Р.А.

Sheet Лист5
A1: Муниципальный этап Всероссийских спортивных игр школьников "Президентские спортивные игры"
A2: Многоборье юноши МБОУ "СОШ №8" 27.04.2022г.
A3: № п/п | B3: Ф.И.О. | C3: Бег 60м | E3: Бег 800м | G3: Метание мяча | I3: Сумма очков
C4: Результат | D4: Очки | E4: Результат | F4: Очки | G4: Результат | H4: Очки
A5: 1 | B5: Бердников Кирилл Эдуардович | C5: 8.32 | D5: 114 | G5: 52 | H5: 93 | I5: =D5+F5+H5 -> 207
A6: 2 | B6: Адельшин Артур Русланович | C6: 8.74 | D6: 102 | G6: 45 | H6: 75 | I6: 177
A7: 3 | B7: Шайдуллин Вильдан Маратович | C7: 8 | D7: 123 | G7: 33 | H7: 45 | I7: 168
A8: 4 | B8: Трифонов Данил Алексеевич | C8: 8.58 | D8: 108 | G8: 35 | H8: 50 | I8: 158
A9: 5 | B9: Фасхутдинов Тимур Маратович | C9: 9.05 | D9: 93 | G9: 31 | H9: 41 | I9: 134 | J9: =I5+I6+I7+I8+I9 -> 844
A10: 6 | B10: Никифоров Влад Евгеньевич | C10: 9.14 | D10: 90 | G10: 31 | H10: 41 | I10: 131
A11: Многоборье девушки МБОУ "СОШ №8" 27.04.2022г.
A12: № п/п | B12: Ф.И.О. | C12: Бег 60м | E12: Бег 600м | G12: Метание мяча | I12: Сумма очков
C13: Результат | D13: Очки | E13: Результат | F13: Очки | G13: Результат | H13: Очки
A14: 1 | B14: Нагорнова Полина Владимировна | C14: 9.3 | D14: 117 | G14: 31 | H14: 62 | I14: =D14+F14+H14 -> 179
A15: 2 | B15: Праслова Виктория Сергеевна | C15: 9.5 | D15: 111 | G15: 26.5 | H15: 51 | I15: 162
A16: 3 | B16: Белокобыльская Диана Ивановна | C16: 9.96 | D16: 99 | G16: 24.5 | H16: 46 | I16: 145
A17: 4 | B17: Сафиуллина | C17: 10.45 | D17: 84 | G17: 29 | H17: 57 | I17: 141
A18: 5 | B18: Мубаракшина Лиана Рамилевна | C18: 9.87 | D18: 102 | G18: 20.5 | H18: 36 | I18: 138 | J18: =I14+I15+I16+I17+I18 -> 765
A19: 6 | B19: Латипова Ландыш Нафисовна | C19: 10.4 | D19: 84 | G19: 19 | H19: 32 | I19: 116
B22: Главный судья ________________Махубрахманова Р.Н.
B24: Главный секретарь _______________Сидюкова Р.А.

Sheet Лист6
A1: Муниципальный этап Всероссийских спортивных игр школьников "Президентские спортивные игры"
A2: Многоборье юноши МБОУ "СОШ №10" 27.04.2022г.
A3: № п/п | B3: Ф.И.О. | C3: Бег 60м | E3: Бег 800м | G3: Метание мяча | I3: Сумма очков
C4: Результат | D4: Очки | E4: Результат | F4: Очки | G4: Результат | H4: Очки
A5: 1 | B5: Андреев Артем Андреевич | C5: 8.5 | D5: 108 | G5: 50 | H5: 88 | I5: =D5+F5+H5 -> 196
A6: 2 | B6: Шарифуллин Артур Альфитович | C6: 8.9 | D6: 96 | G6: 41 | H6: 65 | I6: 161
A7: 3 | B7: Косарев Руслан Александрович | C7: 8.67 | D7: 106 | G7: 32 | H7: 43 | I7: 149
A8: 4 | B8: Афанасьев Никита Андреевич | C8: 8.8 | D8: 99 | G8: 31 | H8: 41 | I8: 140
A9: 5 | B9: Даминов Стас Анатольевич | C9: 9.2 | D9: 87 | G9: 24 | H9: 27 | I9: 114 | J9: =I5+I6+I7+I8+I9 -> 760
A10: 6 | B10: Абдалов Дмитрий Евгеньевич | C10: 9.96 | D10: 66 | G10: 25 | H10: 29 | I10: 95
A11: Многоборье девушки МБОУ "СОШ №10" 27.04.2022г.
A12: № п/п | B12: Ф.И.О. | C12: Бег 60м | E12: Бег 600м | G12: Метание мяча | I12: Сумма очков
C13: Результат | D13: Очки | E13: Результат | F13: Очки | G13: Результат | H13: Очки
A14: 1 | B14: Дюмина Дарья Викторовна | C14: 9.8 | D14: 102 | G14: 32.5 | H14: 66 | I14: =D14+F14+H14 -> 168
A15: 2 | B15: Косаева Полина Анатольевна | C15: 10.3 | D15: 87 | G15: 27.5 | H15: 53 | I15: 140
A16: 3 | B16: Колбасова Виктория Александровна | C16: 9.68 | D16: 108 | G16: 16.9 | H16: 27 | I16: 135
A17: 4 | B17: Звегинцева Вероника Сергеевна | C17: 9.88 | D17: 102 | G17: 19.5 | H17: 33 | I17: 135
A18: 5 | B18: Шпаковская Дарья Андреевна | C18: 11.1 | D18: 66 | G18: 18 | H18: 29 | I18: 95 | J18: =I14+I15+I16+I17+I18 -> 673
A19: 6 | B19: Каримова Яна Игоревна | C19: 11.42 | D19: 54 | G19: 22.5 | H19: 41 | I19: 95
B22: Главный судья ________________Махубрахманова Р.Н.
B24: Главный секретарь _______________Сидюкова Р.А.

Sheet Лист7
A1: Муниципальный этап Всероссийских спортивных игр школьников "Президентские спортивные игры"
A2: Многоборье юноши Гимназия №11 27.04.2022г.
A3: № п/п | B3: Ф.И.О. | C3: Бег 60м | E3: Бег 800м | G3: Метание мяча | I3: Сумма очков
C4: Результат | D4: Очки | E4: Результат | F4: Очки | G4: Результат | H4: Очки
A5: 1 | B5: Фозилов Хайдархуджа Хамзаходжаевич | C5: 9.08 | D5: 93 | G5: 34 | H5: 48 | I5: =D5+F5+H5 -> 141
A6: 2 | B6: Арутюнян Джанибек Карапетович | C6: 8.98 | D6: 96 | G6: 32 | H6: 43 | I6: 139
A7: 3 | B7: Насыртдинов Данияр Артурович | C7: 9.07 | D7: 93 | G7: 32 | H7: 43 | I7: 136
A8: 4 | B8: Матмурадов ИльназДавранович | C8: 9.89 | D8: 69 | G8: 34 | H8: 48 | I8: 117
A9: 5 | B9: Мухаметмуратов Рустам Ринатович | C9: 9.86 | D9: 69 | G9: 33 | H9: 45 | I9: 114 | J9: =I5+I6+I7+I8+I9 -> 647
A10: 6 | B10: Талипов Рияз Ринатович | C10: 9.96 | D10: 66 | G10: 32 | H10: 43 | I10: 109
A11: Многоборье девушки Гимназия №11 27.04.2022г.
A12: № п/п | B12: Ф.И.О. | C12: Бег 60м | E12: Бег 600м | G12: Метание мяча | I12: Сумма очков
C13: Результат | D13: Очки | E13: Результат | F13: Очки | G13: Результат | H13: Очки
A14: 1 | B14: Гимаева Сабина Ильшатовна | C14: 9.9 | D14: 99 | G14: 25.2 | H14: 47 | I14: =D14+F14+H14 -> 146
A15: 2 | B15: Юнусова Рамина Равилевна | C15: 10.34 | D15: 87 | G15: 22.8 | H15: 41 | I15: 128
A16: 3 | B16: Муртазина Камила Ильдаровна | C16: 10.12 | D16: 93 | G16: 16.8 | H16: 26 | I16: 119
A17: 4 | B17: Варянина Дарья Сергеевна | C17: 10.88 | D17: 72 | G17: 21.5 | H17: 38 | I17: 110
A18: 5 | B18: Гараева Алина Радиковна | C18: 10.93 | D18: 69 | G18: 20 | H18: 34 | I18: 103 | J18: =I14+I15+I16+I17+I18 -> 606
A19: 6 | B19: Побудей Анастасия Андреевна | C19: 11.28 | D19: 60 | G19: 13 | H19: 17 | I19: 77
B22: Главный судья ________________Махубрахманова Р.Н.
B24: Главный секретарь _______________Сидюкова Р.А.

Sheet Лист8
A1: Муниципальный этап Всероссийских спортивных игр школьников "Президентские спортивные игры"
A2: Многоборье юноши Лицей №12 27.04.2022г.
A3: № п/п | B3: Ф.И.О. | C3: Год рождения | D3: Бег 60м | F3: Бег 800м | H3: Метание мяча | J3: Прыжки в длину с/р | L3: Сумма очков
D4: Результат | E4: Очки | F4: Результат | G4: Очки | H4: Результат | I4: Очки | J4: Результат | K4: Очки
A5: 1 | B5: Меренков Никита | C5: 2008 | D5: 8.29 | E5: 117 | F5: 2,37.4 | G5: 108 | H5: 42 | I5: 68 | J5: 449 | K5: 50 | L5: =E5+G5+I5+K5 -> 343
A6: 2 | B6: Шафигуллин Адель | C6: 2007 | D6: 8.15 | E6: 120 | F6: 2,57.00 | G6: 79 | H6: 42 | I6: 68 | J6: 460 | K6: 53 | L6: 320
A7: 3 | B7: Летяев Кирилл | C7: 2007 | D7: 9.18 | E7: 90 | F7: 2,59.7 | G7: 77 | H7: 39 | I7: 60 | J7: 443 | K7: 48 | L7: 275
A8: 4 | B8: Вылегжанин Евгений | C8: 2007 | D8: 8.15 | E8: 120 | F8: 2,47.3 | G8: 91 | H8: 0 | I8: 0 | J8: 453 | K8: 51 | L8: 262
A9: 5 | B9: Кудряшов Владислав | C9: 2007 | D9: 9.28 | E9: 87 | F9: 2,45.5 | G9: 94 | H9: 29 | I9: 37 | J9: 413 | K9: 41 | L9: 259 | M9: =L5+L6+L7+L8+L9 -> 1459
A10: 6 | B10: Соловьев Роман | C10: 2007 | D10: 9.9 | E10: 66 | F10: 2,48.3 | G10: 90 | H10: 31 | I10: 41 | J10: 450 | K10: 50 | L10: 247
A11: Многоборье девушки Лицей №12 27.04.2022г.
A12: № п/п | B12: Ф.И.О. | C12: Год рождения | D12: Бег 60м | F12: Бег 600м | H12: Метание мяча | J12: Прыжки в длину с/р | L12: Сумма очков
D13: Результат | E13: Очки | F13: Результат | G13: Очки | H13: Результат | I13: Очки | J13: Результат | K13: Очки
A14: 1 | B14: Губанова Камила | C14: 2007 | D14: 8.33 | E14: 144 | F14: 2,21.4 | G14: 72 | H14: 24 | I14: 44 | J14: 390 | K14: 40 | L14: =E14+G14+I14+K14 -> 300
A15: 2 | B15: Бадретдинова Эльвина | C15: 2007 | D15: 9.33 | E15: 117 | F15: 2,32.3 | G15: 51 | H15: 29 | I15: 57 | J15: 410 | K15: 54 | L15: 279
A16: 3 | B16: Минзина Эвелина | C16: 2008 | D16: 9.28 | E16: 120 | F16: 2,35.4 | G16: 44 | H16: 25 | I16: 47 | J16: 390 | K16: 48 | L16: 259
A17: 4 | B17: Лапаскина Виктория | C17: 2008 | D17: 9.8 | E17: 102 | F17: 2,36.7 | G17: 42 | H17: 27.5 | I17: 53 | J17: 360 | K17: 38 | L17: 235
A18: 5 | B18: Мусина Самира | C18: 2007 | D18: 11.08 | E18: 66 | F18: 2,37.2 | G18: 40 | H18: 32 | I18: 64 | J18: 360 | K18: 38 | L18: 208 | M18: =L14+L15+L16+L17+L18 -> 1281
A19: 6 | B19: Галяева Юлия | C19: 2007 | D19: 11.21 | E19: 60 | F19: 2,55.4 | G19: 8 | H19: 33 | I19: 67 | J19: 377 | K19: 43 | L19: 178
C22: Главный судья ________________Махубрахманова Р.Н.
C24: Главный секретарь _______________Сидюкова Р.А.
